Cogmind - Beta 13 *** ADVENTURER MODE // 2024.04.22 @ 12:41:48 Player: redcomet Result: Destroyed by G-34 Mercenary with Small Laser Performance ------------- Evolutions (0) 0 Regions Visited (1) 200 Robots Destroyed (10) 50 Value Destroyed (238) 238 Prototype IDs (0) 0 Alien Tech Used (0) 0 Bonus (0) 0 TOTAL SCORE: 488 Bonus ------- None Cogmind --------- Core Integrity 0/250 Matter 299/300 Energy 250/250 System Corruption 0% Temperature Cool (6) Movement Flying (1000) Ox12 Location -10/Materials Parts ------- > --- POWER (1) -------- Ion Engine > --- PROPULSION (2) --- Flight Unit > --- UTILITY (2) ------ Small Storage Unit High-capacity Storage Unit > --- WEAPON (2) ------- (None) > --- INVENTORY (20) --- Light Ion Engine Large Storage Unit Small Battery (100) Small Battery (100) Sensor Array Light Assault Rifle Light Assault Rifle Datajack Peak State ------------ > --- POWER ------------ Light Ion Engine > --- PROPULSION ------- Wheel Wheel > --- UTILITY ---------- Small Storage Unit High-capacity Storage Unit > --- WEAPON ----------- Small Laser Light Assault Rifle > --- INVENTORY -------- Ion Engine Light Ion Engine Assault Rifle [Rating: 7] Favorites ----------- Power Light Ion Engine Engine Light Ion Engine Propulsion Flight Unit Wheel Wheel Flight Unit Flight Unit Utility Small Storage Unit Storage Small Storage Unit Weapon Small Laser Energy Gun Small Laser Ballistic Gun Assault Rifle Build | -11 -10 ------- Run | Yrd Mat Slots Evolved . | . . Power . | . . Propulsion . | . . Utility . | . . Weapon . | . . Parts Attached 12 | 6 6 Power 3 | 1 2 Engine 3 | 1 2 Core . | . . Reactor . | . . Propulsion 4 | 2 2 Treads . | . . Leg . | . . Wheel 2 | 2 . Hover . | . . Flight 2 | . 2 Utility 2 | 1 1 Device . | . . Storage 2 | 1 1 Processor . | . . Hackware . | . . Protection . | . . Artifact . | . . Weapon 3 | 2 1 Energy Gun 1 | 1 . Energy Cannon . | . . Ballistic Gun 2 | 1 1 Ballistic Cannon . | . . Launcher . | . . Special Weapon . | . . Impact Weapon . | . . Slashing Weapon . | . . Piercing Weapon . | . . Special Melee Weapon . | . . Unidentified Prototypes . | . . Parts Lost 7 | . 7 Power 1 | . 1 Propulsion 3 | . 3 Utility . | . . Weapon 3 | . 3 Highest Loss Streak 4 | . 4 To Critical Strikes . | . . Average Slot Usage (%) 96 | . 96 Engine 13 | . 13 Wheel 4 | . 4 Flight 20 | . 20 Storage 27 | . 27 Energy Gun 13 | . 13 Ballistic Gun 13 | . 13 Naked Turns . | . . Heaviest Build 53 | 10 53 Greatest Support 20 | 20 20 Greatest Overweight (x) 16 | 1 16 Average Overweight (x) 3 | . 4 Largest Inventory Capacity 20 | 8 20 Average Capacity 19 | 6 19 Most Carried 8 | 5 8 Average Carried 5 | 3 5 Final Capacity 20 | 8 20 Final Carried 8 | 3 8 Class Distribution -------------------- 100% | Mutant Dominant Class ---------------- Mutant | -10/Materials Resources | -11 -10 ----------- Run | Yrd Mat Matter Collected 350 | 209 141 Remotely . | . . Salvage Created 315 | 10 305 Parts 20 | 3 17 Haulers Intercepted . | . . Recyclers Shooed . | . . Parts Field Recycled . | . . Retrieved Matter . | . . Parts Self-Destructed . | . . Prevented . | . . Kills | -11 -10 ------- Run | Yrd Mat Combat Hostiles Destroyed 8 | . 8 Guns 8 | . 8 Classes Destroyed 4 | 1 3 Builder 1 | . 1 Tunneler 1 | 1 . Swarmer 3 | . 3 Grunt 5 | . 5 Best Kill Streak 4 | 1 4 Combat Bots Only 4 | . 4 Max Kills in Single Turn 2 | 1 2 Gunslinging 1 | . 1 Exploded . | . . Melee . | . . Uniques/NPCs Destroyed . | . . Combat | -11 -10 -------- Run | Yrd Mat Hostile Shots Fired 126 | . 126 Missed 35 | . 35 Damage Taken 838 | . 838 Core 250 | . 250 Absorbed by Shields . | . . Ignored by Resistances 260 | . 260 Regen/Repaired (Parts) 27 | . 27 Core Remaining (%) 100 | 100 . Volleys Fired 34 | 1 33 Largest 2 | 2 2 Hottest 60 | 60 60 Shots Fired 65 | 2 63 Gun 65 | 2 63 Cannon . | . . Launcher . | . . Special . | . . Kinetic 32 | 1 31 Thermal 33 | 1 32 Explosive . | . . Electromagnetic . | . . Robot Hit Streak 23 | 1 23 Robot Miss Streak 2 | . 2 Penetration Max . | . . Secondary Targets 3 | . 3 Max Gunslinging Chain 1 | . 1 Shots Hit Robots 51 | 1 50 Core Hits 20 | 1 19 Critical Kills . | . . Critical Parts Destroyed . | . . Critical Strikes . | . . Melee Attacks . | . . Impact . | . . Slashing . | . . Piercing . | . . Sneak Attacks . | . . Combat Hostiles . | . . Follow-up Attacks . | . . Damage Inflicted 528 | 12 516 Guns 519 | 12 507 Cannons . | . . Explosions . | . . Melee . | . . Ramming 9 | . 9 Kinetic 241 | . 241 Thermal 278 | 12 266 Explosive . | . . Electromagnetic . | . . Impact . | . . Slashing . | . . Piercing . | . . Highest Corruption . | . . Average Corruption . | . . Corruption Purged . | . . Corruption Blocked . | . . Overload Shots . | . . Overflow Damage . | . . Projectiles . | . . Explosions . | . . Melee . | . . Knockbacks . | . . Impact . | . . Kinetic . | . . Secondary . | . . Self-Inflicted Damage 4 | . 4 Shots . | . . Rammed 1 | . 1 Targets Rammed 1 | . 1 Kicked . | . . Crushed . | . . Highest Temperature 72 | 20 72 Average Temperature 24 | 15 24 Received Heat Transfer 603 | . 603 Siege Activations . | . . Robots Corrupted . | . . Combat Hostiles . | . . Parts Fried . | . . Impact Corruptions . | . . Robots Melted . | . . Combat Hostiles . | . . Parts Melted . | . . Heat Transferred 625 | 25 600 Parts Sabotaged . | . . Parts Stolen . | . . Parts Stripped . | . . Power Chain Reactions . | . . Alert | -11 -10 ------- Run | Yrd Mat Peak Influence 202 | 5 202 Initial 2 | . 2 Average 30 | 1 31 Maximum Alert Level 1 | . 1 Low Security (%) 93 | 100 93 Level 1 6 | . 6 Level 2 . | . . Level 3 . | . . Level 4 . | . . Level 5 . | . . High Security . | . . Max Security . | . . Squads Dispatched 1 | . 1 Investigation 1 | . 1 Extermination . | . . Reinforcement . | . . Assault . | . . Garrison . | . . Intercept . | . . Searches Triggered . | . . Construction Impeded . | . . Haulers Reinforced . | . . Active Scanning Responses . | . . Cargo Convoy Interrupts . | . . Stealth | -11 -10 --------- Run | Yrd Mat Distress Signals 1 | . 1 Communications Jammed . | . . Distress Signals . | . . Times Spotted 16 | . 16 Peak Tracking Total 8 | . 8 Tactical Retreats 2 | . 2 Traps | -11 -10 ------- Run | Yrd Mat Traps Triggered . | . . Indirectly . | . . Trap Hack Attempts . | . . Triggered . | . . Disarmed . | . . Reprogrammed . | . . Reused . | . . Traps Extracted . | . . Installed . | . . Triggered . | . . Machines | -11 -10 ---------- Run | Yrd Mat Machines Disabled . | . . Max in Single Turn . | . . Machines Repaired . | . . Machines Dismantled . | . . Machines Sabotaged . | . . Overloaded Fab Kills . | . . Hacking | -11 -10 --------- Run | Yrd Mat Machines Accessed 2 | . 2 Terminals 1 | . 1 Fabricators . | . . Repair Stations 1 | . 1 Recycling Units . | . . Scanalyzers . | . . Garrison Access . | . . Total Hacks 5 | . 5 Successful 4 | . 4 Failed 1 | . 1 Catastrophic . | . . Database Lockouts . | . . Manual . | . . Terminals 2 | . 2 Fabricators . | . . Repair Stations 3 | . 3 Recycling Units . | . . Scanalyzers . | . . Garrison Access . | . . Terminal Hacks 2 | . 2 Record 1 | . 1 Zone Layout 1 | . 1 Fabricator Hacks . | . . Repair Station Hacks 2 | . 2 Scan Component 1 | . 1 Repair 1 | . 1 Recycling Unit Hacks . | . . Scanalyzer . | . . Garrison Access Hacks . | . . Unauthorized Hacks . | . . Terminals . | . . Fabricators . | . . Repair Stations . | . . Recycling Units . | . . Scanalyzers . | . . Garrison Access . | . . Data Cores Recovered . | . . Used . | . . Hacking Detections 2 | . 2 Full Trace Events 1 | . 1 Feedback Events . | . . Feedback Blocked . | . . Robot Schematics Acquired . | . . Robots Built . | . . Authchips . | . . Time . | . . Total Robot Build Rating . | . . Part Schematics Acquired . | . . Parts Built . | . . Authchips . | . . Time . | . . Total Part Build Rating . | . . Parts Repaired 1 | . 1 Time 26 | . 26 Parts Recycled . | . . Recycled Matter . | . . Retrieved Matter . | . . Retrieved Components . | . . Parts Scanalyzed . | . . Part Schematics Acquired . | . . Parts Damaged . | . . Bothacking | -11 -10 ------------ Run | Yrd Mat Used RIF Installer . | . . Robots Hacked . | . . Non-combat . | . . Combat . | . . Robot Hacks Applied . | . . Relay Couplers Released . | . . Fabnet Peak Effective % . | . . Robots Rewired . | . . Allies Hacked . | . . Hacks Repelled . | . . Allies | -11 -10 -------- Run | Yrd Mat Total Allies . | . . Largest Group . | . . Highest-Rated Group . | . . Highest-Rated Ally . | . . Total Orders . | . . Ally Attacks . | . . Total Damage . | . . Kills . | . . Allies Corrupted . | . . Allies Melted . | . . Intel | -11 -10 ------- Run | Yrd Mat Robot Analysis Total . | . . Derelict Logs Recovered . | . . Drone Launches . | . . Drone Recoveries . | . . Exploration | -11 -10 ------------- Run | Yrd Mat Turns Passed 1313 | 49 1264 Spaces Moved 387 | 50 337 Core 32 | 30 2 Treads . | . . Legs . | . . Wheels 179 | 20 159 Hover . | . . Flight 176 | . 176 Fastest Speed 50 | 50 80 Average Speed 303 | 66 338 Slowest Speed 1000 | 100 1000 Overloaded Moves . | . . Propulsion Burnouts . | . . Robots Hopped . | . . Cave-ins Triggered . | . . Exploration Rate (%) 20 | 3 37 Regions Visited 1 Branch Regions . Pre-discovered Areas . | . . Known Exits Taken . | . . Unknown Exits Taken 1 | 1 . Scrap Searched . | . . Spaces Dug . | . . Terrain Destroyed . | . . Melee . | . . Projectile . | . . AOE . | . . Terrain Rammed . | . . Walls Destroyed . | . . Machines Disabled . | . . Actions | -11 -10 --------- Run | Yrd Mat Total 463 | 62 401 Wait 13 | . 13 Move 386 | 49 337 Hop . | . . Pick Up 17 | 6 11 Fast Attach 3 | 3 . Attach 9 | 3 6 Detach . | . . Swap . | . . Drop . | . . Fire 34 | 1 33 Melee . | . . Ram 1 | . 1 Kick . | . . Crush . | . . Escape Stasis . | . . Rewire . | . . Trap . | . . Miscellaneous . | . . Route ------- -11/Scrapyard -10/Materials History --------- Turn | Location | Event 13 | -11/Scrapyard | Discovered new exit (range 15) 50 | -11/Scrapyard | Entered Materials 305 | -10/Materials | Build established: Mutant 306 | -10/Materials | Core integrity fell below 50% 332 | -10/Materials | Lost 4 parts (1p2n1w) 1246 | -10/Materials | Repaired Lgt. Ion Engine 1286 | -10/Materials | Core integrity fell below 20% 1314 | -10/Materials | Destroyed by G-34 Mercenary with Small Laser Last Messages --------------- Lgt. Ion Engine Rating: 1 Time: 26 >>Repair Repairing Lgt. Ion Engine... ETC: 26 01220_ ALERT: Suspicious activity at Repair Station M001. Dispatching Investigation squad. 01221_ K-01 Serf cleans the Repair Station. 01237_ K-01 Serf cleans the Processing Tank. 01246_ Repair station completes Lgt. Ion Engine repairs. 01252_ K-01 Serf cleans the Processing Tank. 01278_ Acquired Lgt. Ion Engine. 01279_ K-01 Serf cleans the Processing Tank. 01298_ Sml. Laser destroyed. 01304_ Flight Unit destroyed. 01306_ Assault Rifle destroyed. Map ----- +----------------------------------------------------+ | ???????????????"""" #???????# ## #???????? | | ???????????????"""" #???????# ## #???????? | | ???????????????"""" #???????# ## ##??????? | | ???????????????"""" #???????####+### #??????? | | ??????????????? ######### #??????? | | ???????????????##+#####T#"T"## T #??????? | | ??????????????? #??????? | | ??????????????? ### #??????? | | ??????????????? """ """ """ ##############?? | | ??????????????? """ """ """ # #?? | | ??????????????? """ """ """ # """ """ #?? | | ???????????????# # """ """ #?? | | ???????????????# # """ """ #?? | | ???????????????+ "T" # #?? | | ???????????????# ###+###########? | | ???????????????# #? | | ???????????????# ########## #? | | ???????????????# # # ## | | ???????????????# + """ # # | | ???????????????# # """ ## ########### # | | ???????????????# # """ ## #??# # # | | ???????????????# # ## #??#| %+ + | | ???????????????# # ## #??# """ # # | | ???????????????+ ########### ####% """ # # | | ???????????????# ########### + %""" # ## | | ???????????????# # @ # ##### # #? | | ???????????????# #""" ### #???######## #? | | ???????????????# #"R """ #?# #???# # # #? | | ???????????????# #"""gg""" #?# #???# # + ## | | ???????????????+ + """ #?# #????????# # ^ | | ???????????????# # """ ### #????????### | | ???????????????###?# """k/ #######????# ^ | | ???????????????????#! ###### #######+### | | ???????????????????###########????# ## """ | | ?????????????????????############## ## "T" | | ?????????????? =[%%+ ## | | ?????????????????????######## ##### ## | | ????????????????????????????# #???# ## """ """ | | ?????????????????????????####+##??# ## """ """ | | ?????????????????????????# #??# ## """ """ | | ?????????????????????????# #??# ## | | ?????????????????????????# ######+######+##### | | ?????????????????????????# # % #???? | | ?????????????????????????# # #???? | | ?????????????????????????# + #???? | | ?????????????????????????# !! # #######+#####?? | | ?????????????????????????# !! # #?# """ """ #?? | | ?????????????????????????# # #?# """ """ #?? | | ?????????????????????????# # #?# """ """ #?? | | ?????????????????????????# # #?# #?? | +----------------------------------------------------+ Best States ------------- Heat Dissipation 25 Energy Generation 10 Energy Capacity 250 Matter Stores 300 Matter Capacity 300 Sight Range 16 Terrain Scan Density 10 Resistance: KI 20 Resistance: TH 20 Resistance: EX 20 Resistance: EM 20 Resistance: I 20 Resistance: S 20 Resistance: P 20 Evasion (%) 50 Offensive Hacking 10 Item Schematics ----------------- None Robot Schematics ------------------ None Fabricated ------------ Nothing Alien Tech Used ----------------- None Achievements -------------- None Challenges ------------ None Game ------ Seed FieldLobotomyKatana Manual? 0 Play Time 00:13:56 Cumulative 8.0 hours Start 2024.04.22 @ 12:29:44 End 2024.04.22 @ 12:41:48 Sessions 1 Manual Loads 0 Difficulty Adventurer Special Mode None Game No. 9 Rogue 0 Adventurer 9 Explorer 0 Win Type - Total 0 Types 0/0/0/0/0/0/0/0/0 Lore% 13 Gallery% 13 Achievement% 12 Wizard Run 0 Options --------- Layout 1 ASCII 0 Keyboard 0 Movement Arrows Keybinds 0 Fullscreen 1 Font 24/Smallcaps Map View 50x35 Zoom Use 0% Tactical HUD 1 Map Filters NONE Filters NONE Steam 1 RUN: 248e741d-2ffd-493e-ad91-89d840b02374